fUSD/lending_fUSD_20240223
["ID","MTS","AMOUNT","RATE_DAILY","PERIOD"]
[314929157,1708678241071,-151.97,0.00027687,2]
[314929158,1708678241083,-170.32,0.00027806,10]
[314929159,1708678241326,-44845.91764713,0.00028,2]
[314929160,1708678241335,-150.7,0.00028002,2]
[314929161,1708678241344,-166.05,0.0002811,2]
[314929162,1708678241353,-150.7,0.00028142,2]
[314929163,1708678241362,-2000.0,0.000282,2]
[314929164,1708678241371,-512.0,0.0002828,2]
[314929165,1708678241380,-150.7,0.00028282,2]
[314929166,1708678241389,-193.73014769,0.00028317,2]
[314929167,1708678241398,-166.05,0.00028347,2]
[314929168,1708678241408,-1402.66352003,0.0002837,2]
[314929169,1708678241418,-1774.92,0.00028399,2]
[314929170,1708678241428,-193.73014767,0.0002847,2]
[314929171,1708678241438,-20224.62920025,0.00028522,2]
[314929172,1708678241447,-2500.0,0.0002854,2]
[314929173,1708678241456,-166.05,0.00028585,2]
[314929174,1708678241465,-150.0,0.00028586,2]
[314929175,1708678241475,-155.0,0.00028621,2]
[314929176,1708678241484,-272.64662214,0.00028622,4]
[314929177,1708678241495,-188.70842585,0.00028622,2]
[314929178,1708678241507,-193.73014767,0.00028622,2]
[314929179,1708678241517,-3859.25716084,0.0002864,2]
[314929180,1708678241527,-500.0,0.00028721,2]
[314929181,1708678241538,-500.0,0.00028721,2]
[314929182,1708678241548,-500.0,0.00028721,2]
[314929183,1708678241559,-500.0,0.00028721,2]
[314929184,1708678241569,-500.0,0.00028721,2]
[314929185,1708678241580,-164.43922393,0.00028721,2]
[314929186,1708678241591,-12424.30947067,0.00028721,2]
[314929187,1708678241601,-30563.60097654,0.00028722,2]
[314929188,1708678241632,-1293.85122542,0.00028722,2]
[314929189,1708678241656,-296.68998878,0.00028722,2]
[314929190,1708678241673,-26125.823789,0.00028722,2]
[314929201,1708678245043,-156.99553974,0.00027999,2]
[314929202,1708678245053,-24504.53259797,0.00028722,2]
[314929203,1708678245065,-7610.249997,0.00028722,2]
[314929204,1708678245077,-2897.74449262,0.00028722,2]
[314929206,1708678245090,-737.25850137,0.00028722,2]
[314929207,1708678245107,-5970.2484313,0.00028722,2]
[314929208,1708678245117,-9797.13428057,0.00028722,2]
[314929209,1708678245130,-995.53358351,0.00028722,2]
[314929210,1708678245141,-105713.56526693,0.00028722,2]
[314929211,1708678245162,-1527.65931469,0.00028722,2]
[314929212,1708678245174,-669.8361301,0.00028722,2]
[314929213,1708678245187,-291.81,0.00028722,2]
[314929216,1708678245260,-583.56908953,0.00028722,2]
[314929220,1708678245324,-280.62536943,0.00028722,2]
[314929221,1708678245336,-513.27410056,0.00028722,2]
[314929222,1708678245348,-957.77868697,0.00028722,2]
[314929223,1708678245394,-123669.21417771,0.00028722,2]
[314929226,1708678245404,-21214.9469,0.00028722,2]
[314929228,1708678245414,-1402.66352003,0.00028742,2]
[314929230,1708678245423,-262.05236759,0.00028764,7]
[314929232,1708678245434,-173.7543447,0.00028764,7]
[314929233,1708678245443,-288.69871382,0.00028764,7]
[314929235,1708678245452,-702.47445413,0.00028764,7]
[314929237,1708678245461,-1000.0,0.00028764,7]
[314929240,1708678245471,-1655.70285261,0.00028764,7]
[314929243,1708678245481,-786.79487761,0.00028764,7]
[314929245,1708678245490,-150.0,0.00028815,2]
[314929247,1708678245501,-186.11982756,0.0002882,2]
[314929249,1708678245510,-1049.28297181,0.0002882,2]
[314929250,1708678245520,-500.0,0.00028821,2]
[314929253,1708678245530,-166.05,0.00028822,2]
[314929256,1708678245539,-543.07344562,0.00028822,2]
[314929257,1708678245549,-272.64662208,0.00028838,4]
[314929258,1708678245559,-9959.8248971,0.00028899,2]
[314929262,1708678245572,-16993.57581157,0.000289,2]
[314929265,1708678245582,-272.2455436,0.00028919,2]
[314929268,1708678245592,-164.49282446,0.00028922,2]
[314929270,1708678245601,-1469.3176206,0.00028922,2]
[314929272,1708678245610,-1439.22671724,0.00028922,2]
[314929274,1708678245620,-200.0,0.00028922,2]
[314929276,1708678245629,-510.73,0.00028953,2]
[314929277,1708678245639,-1828.11,0.00029,2]
[314929279,1708678245649,-2000.0,0.00029,2]
[314929280,1708678245659,-1500.0,0.00029,2]
[314929281,1708678245669,-1000.0,0.00029,29]
[314929282,1708678245679,-296.72307367,0.00029,2]
[314929283,1708678245689,-173.29313199,0.00029,2]
[314929284,1708678245698,-512.0,0.0002903,2]
[314929285,1708678245707,-150.0,0.00029045,2]
[314929286,1708678245717,-272.64662208,0.00029053,4]
[314929287,1708678245726,-20224.62920024,0.00029101,2]
[314929288,1708678245736,-3376.62459243,0.00029105,2]
[314929289,1708678245745,-168.33326259,0.00029111,2]
[314929290,1708678245755,-150.0,0.00029114,2]
[314929291,1708678245764,-543.07344559,0.00029115,2]
[314929293,1708678245774,-150.0,0.0002913,2]
[314929295,1708678245784,-458.0,0.00029141,2]
[314929297,1708678245793,-168.788,0.00029141,2]
[314929299,1708678245802,-150.0,0.00029141,2]
[314929300,1708678245812,-208.1605,0.00029144,2]
[314929301,1708678245822,-3376.62459236,0.00029198,2]
[314929302,1708678245831,-200.0,0.00029211,2]
[314929303,1708678245840,-150.0,0.00029217,2]
[314929304,1708678245850,-300.0,0.00029222,2]
[314929305,1708678245860,-312.0,0.00029234,5]
[314929306,1708678245869,-150.0,0.00029241,2]
[314929307,1708678245879,-150.0,0.00029268,2]
[314929308,1708678245888,-272.64662208,0.00029269,4]
[314929309,1708678245898,-2000.0,0.00029273,2]
[314929310,1708678245908,-200.0,0.00029273,2]
[314929312,1708678245918,-30179.03380585,0.00029273,2]
[314929313,1708678245928,-14423.30051634,0.00029274,2]
[314929315,1708678245938,-157.92378669,0.0002928,2]
[314929317,1708678245947,-3376.62459236,0.00029292,2]
[314929318,1708678245956,-545.84,0.000293,2]
[314929319,1708678245965,-158.11243593,0.00029301,2]
[314929320,1708678245975,-1402.66352003,0.00029306,2]
[314929321,1708678245984,-71136.7922834,0.00029322,2]
[314929322,1708678245997,-5974.17,0.00029322,2]
[314929323,1708678246010,-3348.08119568,0.00029322,2]
[314929324,1708678246022,-1328.38696737,0.00029322,2]
[314929325,1708678246045,-881.8822897,0.00029322,2]
[314929326,1708678246065,-5295.65459144,0.00029322,2]
[314929327,1708678246077,-10509.0414,0.00029322,2]
[314929329,1708678246159,-22719.7055389,0.00029322,2]
[314929330,1708678246192,-266.87064003,0.00029322,2]
[314929331,1708678246204,-12241.468196,0.00029322,2]
[314929332,1708678246214,-3701.27285981,0.00029323,2]
[314929333,1708678246225,-163.62,0.00029327,2]
[314929334,1708678246235,-158.11243593,0.00029328,2]
[314929335,1708678246244,-14423.30051634,0.00029343,2]
[314929336,1708678246254,-171.80334546,0.00029357,2]
[314929337,1708678246263,-637.81846486,0.00029358,2]
[314929338,1708678246273,-150.0,0.00029365,2]
[314929339,1708678246283,-150.64,0.00029379,2]
[314929340,1708678246293,-3376.62459236,0.00029385,2]
[314929341,1708678246302,-1901.86852625,0.00029385,2]
[314929342,1708678246312,-637.81846486,0.00029386,2]
[314929343,1708678246322,-171.58217408,0.00029391,3]
[314929344,1708678246331,-12142.0,0.000294,5]
[314929345,1708678246341,-172.65979484,0.000294,2]
[314929346,1708678246350,-543.07344559,0.00029407,2]
[314929347,1708678246359,-500.0,0.00029421,2]
[314929348,1708678246369,-25763.55,0.00029422,5]
[314929349,1708678246379,-3376.62459236,0.00029478,2]
[314929350,1708678246388,-272.64662208,0.00029484,4]
[314929351,1708678246397,-5563.27305624,0.00029485,2]
[314929352,1708678246407,-30893.54325255,0.00029485,2]
[314929353,1708678246437,-4349.59286966,0.00029485,2]
[314929354,1708678246576,-681.07127995,0.00029485,2]
[314929355,1708678246588,-534.00001,0.00029485,2]
[314929356,1708678246613,-3096.45993532,0.00029485,2]
[314929357,1708678270718,1049.28297181,0.00023,2]
[314929358,1708678270739,1801.1217,0.00023,2]
[314929359,1708678270772,152209.15667975,0.00023,2]
[314929360,1708678314396,2666.13276671,0.00021,4]
[314929361,1708678434629,34389.35055354,0.00023,2]
[314929362,1708678434655,162556.20047313,0.00023,2]
[314929364,1708678874809,186.93,0.00026204,10]
[314929365,1708678891258,150.0,0.00023,2]
[314929398,1708679431906,-359.27642216,0.00023999,2]
[314929399,1708679431916,-1243.0,0.00024,2]
[314929400,1708679431926,-526.11,0.0002432,2]
[314929401,1708679431936,-220.3095,0.00024684,2]
[314929402,1708679431947,-238.1777,0.00024784,2]
[314929403,1708679431959,-750.0,0.00025,3]
[314929404,1708679431969,-156.48851905,0.00025453,2]
[314929405,1708679431978,-150.0,0.00025553,2]
[314929406,1708679431987,-156.48851893,0.00025684,2]
[314929407,1708679431998,-1500.0,0.00025746,3]
[314929408,1708679432008,-2453.29,0.00025762,2]
[314929409,1708679432017,-150.0,0.00025769,2]
[314929410,1708679432027,-300.0,0.00025769,2]
[314929411,1708679432037,-5298.57,0.00025769,2]
[314929412,1708679432046,-2640.68,0.0002577,2]
[314929413,1708679432055,-755.20967623,0.00025776,2]
[314929414,1708679432068,-1244.79032377,0.00025776,2]
[314929415,1708679432077,-200.0,0.00025883,2]
[314929416,1708679432086,-965.2,0.00025905,2]
[314929417,1708679432095,-569.6,0.00025907,2]
[314929418,1708679432105,-156.48851893,0.00025915,2]
[314929419,1708679432114,-361.24,0.00025935,2]
[314929420,1708679432123,-153.52,0.00025944,2]
[314929421,1708679432132,-696.73603151,0.00025949,2]
[314929422,1708679432144,-643.21863809,0.00025949,2]
[314929423,1708679432156,-280.22034842,0.00025949,2]
[314929424,1708679433830,-3473.80498198,0.00025949,2]
[314929425,1708679433839,-150.0,0.00025953,2]
[314929426,1708679433848,-500.0,0.00025965,2]
[314929427,1708679433857,-155.0,0.00025971,2]
[314929428,1708679433866,-7555.71214244,0.00025973,2]
[314929429,1708679433909,-417.78448652,0.00025973,2]
[314929430,1708679433920,-378.38337104,0.00025973,2]
[314929431,1708679433930,-675.04367004,0.00025973,2]
[314929432,1708679433945,-4.65632996,0.00025973,2]
[314929433,1708679433955,-155.02,0.00026026,2]
[314929435,1708679433965,-155.02,0.00026097,2]
[314929436,1708679433975,-150.0,0.00026101,2]
[314929437,1708679433984,-160.55,0.00026128,2]
[314929438,1708679433993,-156.48851893,0.00026146,2]
[314929439,1708679434003,-155.02,0.00026169,2]
[314929440,1708679434012,-34.27115533,0.00026204,2]
[314929445,1708679437870,-446.34884467,0.00026204,2]
[314929446,1708679437880,-155.02,0.0002624,2]
[314929447,1708679437890,-155.02,0.00026311,2]
[314929448,1708679437900,-179.0,0.00026349,2]
[314929449,1708679437911,-415.2779608,0.00026371,2]
[314929450,1708679437920,-430.4,0.00026372,2]
[314929451,1708679437930,-156.48851893,0.00026377,2]
[314929452,1708679437940,-155.02,0.00026383,2]
[314929453,1708679437951,-160.55,0.00026418,2]
[314929454,1708679437960,-155.02,0.00026454,2]
[314929455,1708679437970,-1805.38,0.00026461,2]
[314929456,1708679437979,-208.0,0.00026508,2]
[314929457,1708679437988,-155.02,0.00026525,2]
[314929458,1708679437997,-134.0846756,0.00026553,2]
[314929459,1708679438020,-365.9053244,0.00026553,2]
[314929460,1708679438029,-526.11,0.00026584,2]
[314929461,1708679438039,-155.02,0.00026597,2]
[314929462,1708679438048,-156.48851893,0.00026607,2]
[314929463,1708679438057,-150.97137965,0.00026649,2]
[314929464,1708679438066,-155.02,0.00026668,2]
[314929465,1708679438076,-234.51227222,0.00026687,2]
[314929466,1708679439492,-173.50772778,0.00026687,2]
[314929467,1708679439502,-160.55,0.00026708,2]
[314929469,1708679439511,-155.02,0.00026739,2]
[314929471,1708679439521,-155.02,0.00026811,2]
[314929473,1708679439530,-156.48851893,0.00026838,2]
[314929475,1708679439540,-155.02,0.00026882,2]
[314929477,1708679439550,-42907.0,0.00026897,2]
[314929479,1708679439559,-250.08316889,0.00026925,2]
[314929481,1708679439569,-155.02,0.00026954,2]
[314929483,1708679439579,-160.55,0.00026999,2]
[314929485,1708679439588,-12673.50010085,0.00027,2]
[314929487,1708679439598,-800.0,0.00027,3]
[314929489,1708679439607,-22015.13285477,0.00027,2]
[314929492,1708679439622,-1919.19173163,0.00027,2]
[314929494,1708679439633,-155.02,0.00027025,2]
[314929496,1708679439642,-224.01,0.00027079,2]
[314929498,1708679439652,-155.02,0.00027096,2]
[314929500,1708679439662,-150.0,0.00027131,2]
[314929502,1708679439674,-155.02,0.00027168,2]
[314929504,1708679439683,-179.0,0.00027171,2]
[314929506,1708679439694,-173.2,0.00027171,2]
[314929508,1708679439703,-224.01,0.00027221,2]
[314929510,1708679439713,-155.02,0.00027239,2]
[314929513,1708679439723,-160.55,0.00027289,2]
[314929515,1708679439732,-155.02,0.0002731,2]
[314929517,1708679439741,-224.01,0.00027364,2]
[314929519,1708679439751,-155.02,0.00027382,2]
[314929521,1708679439760,-150.0,0.00027397,7]
[314929523,1708679439770,-2567.07,0.00027397,2]
[314929525,1708679439779,-274.76,0.00027397,10]
[314929527,1708679439788,-349.86,0.00027397,10]
[314929529,1708679439798,-291.55,0.00027397,10]
[314929531,1708679439807,-242.95,0.00027397,10]
[314929533,1708679439817,-375.0,0.000274,2]
[314929535,1708679439826,-250.08316886,0.00027428,2]
[314929537,1708679439835,-224.01,0.00027506,2]
[314929539,1708679439844,-965.2,0.00027549,2]
[314929541,1708679439854,-2567.07,0.00027556,2]
[314929543,1708679439864,-160.55,0.00027579,2]
[314929545,1708679439877,-170.4,0.00027591,2]
[314929547,1708679439886,-150.0,0.00027644,7]
[314929549,1708679439896,-224.01,0.00027649,2]
[314929552,1708679439905,-85467.38922957,0.00027691,2]
[314929554,1708679439915,-4246.0779,0.00027707,2]
[314929556,1708679439925,-2567.07,0.00027714,2]
[314929558,1708679439934,-19359.94949914,0.00027767,2]
[314929560,1708679439946,-174.32,0.0002779,2]
[314929562,1708679439957,-224.01,0.00027791,2]
[314929564,1708679439967,-271.0,0.000278,2]
[314929566,1708679439976,-5498.8107,0.000278,2]
[314929568,1708679439986,-1797.64,0.00027866,2]
[314929570,1708679439996,-160.55,0.0002787,2]
[314929572,1708679440006,-2567.07,0.00027872,2]
[314929574,1708679440016,-238.0,0.00027894,2]
[314929576,1708679440026,-32325.5953,0.000279,2]
[314929578,1708679440036,-1467.98343451,0.00027912,2]
[314929580,1708679440047,-568.2986511,0.0002793,3]
[314929582,1708679440057,-250.08316886,0.0002793,2]
[314929584,1708679440067,-224.01,0.00027934,2]
[314929586,1708679440078,-236.86630025,0.0002799,2]
[314929588,1708679440088,-179.0,0.00027993,2]
[314929590,1708679440098,-345.88326893,0.00027999,15]
[314929592,1708679440109,-238726.25169346,0.00028,2]
[314929595,1708679440122,-85778.70470371,0.00028,2]
[314929597,1708679440133,-2567.07,0.0002803,2]
[314929599,1708679440143,-224.01,0.00028076,2]
[314929601,1708679440153,-160.55,0.0002816,2]
[314929603,1708679440163,-2567.07,0.00028189,2]
[314929605,1708679440173,-543.07344559,0.00028196,2]
[314929607,1708679440182,-2000.0,0.000282,2]
[314929609,1708679440194,-1500.0,0.000282,2]
[314929611,1708679440205,-224.01,0.00028219,2]
[314929613,1708679440215,-568.29865103,0.00028244,4]
[314929616,1708679440225,-1467.98343449,0.00028279,2]
[314929618,1708679440234,-174.32,0.00028286,2]
[314929620,1708679440246,-17608.48,0.00028296,2]
[314929622,1708679440255,-17608.48,0.00028296,2]
[314929624,1708679440265,-17608.48,0.00028296,2]
[314929626,1708679440275,-17608.48,0.00028296,2]
[314929628,1708679440285,-17608.48,0.00028296,2]
[314929630,1708679440295,-17608.48,0.00028296,2]
[314929632,1708679440304,-17608.48,0.00028296,2]
[314929634,1708679440315,-17608.48,0.00028296,2]
[314929636,1708679440325,-17608.48,0.00028296,2]
[314929638,1708679440335,-5876.53880647,0.00028296,2]
[314929642,1708679440364,-535.32831113,0.00028296,2]
[314929645,1708679440381,-10192.95086942,0.00028296,2]
[314929663,1708679440537,-156.48851893,0.00027069,2]
[314929665,1708679440547,-176.59764847,0.00028296,2]
[314929722,1708679444258,-11.79862062,0.00028296,2]
[314929723,1708679444271,-815.26574389,0.00028296,2]
[314929724,1708679444281,-17608.48,0.00028296,2]
[314929725,1708679444291,-2492.80035889,0.00028296,2]
[314929726,1708679444303,-1531.93809026,0.00028296,2]
[314929727,1708679444315,-3834.0992114,0.00028296,2]
[314929728,1708679444328,-3082.58990501,0.00028296,2]
[314929729,1708679444341,-6302.63711354,0.00028296,2]
[314929730,1708679444428,-290.781003,0.00028296,2]
[314929731,1708679444444,-73.6343179,0.00028296,2]
[314929748,1708679444754,-198.5886821,0.00028296,2]
[314929750,1708679444775,-7943.47416661,0.00028296,2]
[314929751,1708679444791,-279.02892948,0.00028296,2]
[314929811,1708679445953,-156.48851893,0.000273,2]
[314929812,1708679445964,-155.54665599,0.00028296,2]
[314929813,1708679446077,-9031.84156582,0.00028296,2]
[314929814,1708679446087,-5543.15843423,0.00028296,2]
[314929815,1708679446139,-1458.0,0.00028296,2]
[314929816,1708679446212,-608.37777744,0.00028296,2]
[314929820,1708680019533,-1071.9332636,0.0003,31]
[314929821,1708680019555,-477.42,0.0003,120]
[314929822,1708680019581,-151.0,0.00030875,120]
[314929823,1708680019602,-900.0,0.00031,32]
[314929824,1708680019624,-151.0,0.00031505,30]
[314929825,1708680019646,-900.0,0.00032,33]
[314929826,1708680019727,-158.4594,0.00032877,30]
[314929827,1708680019762,-900.0,0.00033,34]
[314929828,1708680019784,-511.15894504,0.00033,34]
[314929829,1708680020036,-900.0,0.00034,35]
[314929830,1708680020060,-250.0,0.00034,120]
[314929831,1708680020212,-481.06871168,0.00035,30]
[314929832,1708680020238,-900.0,0.00035,36]
[314929833,1708680020260,-250.0,0.00035,120]
[314929834,1708680020281,-157.67296212,0.00035,30]
[314929835,1708680020414,-900.0,0.00036,37]
[314929836,1708680020436,-8890.28671756,0.00036,30]
[314929850,1708680632112,-359.27642216,0.0002424,2]
[314929852,1708680632121,-457.31147432,0.00024241,2]
[314929854,1708680632247,-16.17852568,0.00024241,2]
[314929855,1708680632258,-306.52880173,0.00024739,2]
[314929856,1708680632293,-309.03396925,0.00024739,2]
[314929857,1708680632303,-415.2779608,0.00024747,2]
[314929858,1708680632313,-9.87132483,0.00025,3]
[314929859,1708680632353,-707.14810703,0.00025,3]
[314929860,1708680632365,-32.98056814,0.00025,3]
[314929861,1708680632375,-794.59890226,0.00025201,2]
[314929862,1708680632386,-1481.85441245,0.00025201,2]
[314929863,1708680638597,-1298.61862913,0.00025201,2]
[314929864,1708680638632,-319.4749821,0.00025201,2]
[314929865,1708680638641,-155.95809787,0.00025785,2]
[314929866,1708680638651,-1534.41108133,0.00025785,2]
[314929867,1708680639328,-53.91831867,0.00025785,2]
[314929868,1708680639337,-1798.15,0.00025886,2]
[314929869,1708680639347,-1814.11,0.00026064,2]
[314929870,1708680639356,-340.01,0.00026159,2]
[314929871,1708680639365,-155.95809783,0.00026172,2]
[314929872,1708680639374,-499.99,0.00026172,2]
[314929873,1708680639384,-1824.99,0.00026287,2]
[314929874,1708680639394,-643.46,0.00026419,2]
[314929875,1708680639403,-544.32,0.00026419,2]
[314929876,1708680639412,-3998.96,0.00026435,2]
[314929877,1708680639422,-158.16,0.00026436,2]
[314929878,1708680639431,-314.34,0.00026456,2]
[314929879,1708680639441,-463.0,0.00026486,2]
[314929880,1708680639451,-473.49,0.00026505,2]
[314929881,1708680639460,-1500.0,0.00026513,3]
[314929882,1708680639470,-155.95809783,0.00026559,2]
[314929883,1708680639479,-1830.98,0.00026567,2]
[314929884,1708680639488,-455.68,0.00026576,2]
[314929885,1708680639499,-566.41,0.00026629,2]
[314929886,1708680639507,-180.62,0.00026634,2]
[314929887,1708680639517,-170.4,0.0002669,2]
[314929888,1708680639526,-152.14,0.00026708,2]
[314929889,1708680639534,-168.05,0.0002683,2]
[314929890,1708680639543,-1822.81,0.0002692,2]
[314929891,1708680639553,-155.95809783,0.00026946,2]
[314929893,1708680639562,-800.0,0.00027,3]
[314929895,1708680639571,-1269.176992,0.00027138,2]
[314929897,1708680639580,-208.0,0.00027292,2]
[314929899,1708680639589,-155.95809783,0.00027333,2]
[314929901,1708680639597,-1540.24,0.00027397,2]
[314929903,1708680639606,-375.0,0.000274,2]
[314929905,1708680639615,-1777.51,0.00027511,2]
[314929907,1708680639625,-177.74,0.0002752,2]
[314929909,1708680639634,-1776.0,0.00027538,2]
[314929911,1708680639642,-1269.176992,0.00027555,2]
[314929913,1708680639651,-1540.24,0.00027556,2]
[314929915,1708680639660,-152.14,0.00027598,2]
[314929917,1708680639669,-1540.24,0.00027714,2]
[314929919,1708680639678,-155.95809783,0.00027721,2]
[314929921,1708680639687,-1390.911033,0.0002773,2]
[314929923,1708680639697,-1269.176992,0.00027731,2]
[314929925,1708680639706,-1540.24,0.00027872,2]
[314929927,1708680639715,-17423.95454919,0.00027888,2]
[314929929,1708680639724,-2000.0,0.000279,2]
[314929931,1708680639733,-3382.1509,0.00027913,2]
[314929933,1708680639745,-202.46,0.00027922,10]
[314929935,1708680639753,-168.72,0.00027922,10]
[314929937,1708680639762,-843.62,0.00027922,10]
[314929939,1708680639771,-115148.76807157,0.00027932,2]
[314929948,1708680640712,-452.25615153,0.00027932,2]
[314929949,1708680640724,-359.45574608,0.00027932,2]
[314929950,1708680641399,-309.12639055,0.00027932,2]
[314929951,1708680641459,-500.69476778,0.00027932,2]
[314929952,1708680643097,-1481.60810997,0.00027932,2]
[314929953,1708680643214,-17309.49872742,0.00027932,2]
[314929954,1708680643229,-8782.78070342,0.00027932,2]
[314929955,1708680643246,-551.08896585,0.00027932,2]
[314929956,1708680643258,-323.59890004,0.00027932,2]
[314929957,1708680643274,-1776.88551971,0.00027932,2]
[314929958,1708680643285,-6693.11279446,0.00027932,2]
[314929959,1708680643396,-2346.77543874,0.00027932,2]
[314929979,1708680646101,-1090.16395864,0.00027932,2]
[314929980,1708680646351,-402.40279773,0.00027932,2]
[314929981,1708680646375,-1494.79085651,0.00027932,2]
[314929982,1708680646384,-1269.176992,0.00027988,2]
[314929983,1708680646393,-1000.0,0.00027995,2]
[314929984,1708680646403,-1049.28241581,0.00028011,2]
[314929985,1708680646412,-174.32,0.00028022,2]
[314929986,1708680646421,-615.56277098,0.0002803,2]
[314929987,1708680646430,-1540.24,0.0002803,2]
[314929988,1708680646440,-79039.40686879,0.00028032,2]
[314929989,1708680646449,-497.26131966,0.00028032,3]
[314929990,1708680646458,-1174.3867476,0.00028032,2]
[314929991,1708680646467,-511.1224,0.00028032,2]
[314929992,1708680646477,-1014.1099,0.00028033,2]
[314929993,1708680646486,-643.46,0.00028063,2]
[314929994,1708680646495,-177.74,0.00028068,2]
[314929995,1708680646506,-153.05144852,0.00028089,2]
[314929996,1708680646515,-280.66977981,0.00028093,2]
[314930026,1708681212312,-359.27642216,0.00024936,2]
[314930027,1708681212332,-426.14,0.00024937,2]
[314930028,1708681552275,404.83,0.00024643,2]
[314930033,1708681747120,-359.27642216,0.00025542,2]
[314930034,1708681747142,-522.60586754,0.00025542,2]
[314930046,1708681832336,-92.95690344,0.00025542,2]
[314930047,1708681832346,-1782.06154312,0.00025543,2]
[314930048,1708681832360,-359.27642216,0.00026046,2]
[314930049,1708681832370,-102.67985608,0.00026047,2]
[314930050,1708681832398,-52.32014392,0.00026047,2]
[314930051,1708681832408,-163.0,0.00026049,2]
[314930052,1708681832418,-250.88625727,0.00026443,2]
[314930053,1708681832442,-2407.33614273,0.00026443,2]
[314930054,1708681832452,-1019.04,0.00026497,3]
[314930055,1708681832462,-428.97,0.00026531,2]
[314930056,1708681832471,-180.62,0.00026544,2]
[314930057,1708681832481,-283.34,0.00026552,2]
[314930058,1708681832490,-168.05,0.0002657,2]
[314930059,1708681832500,-193.50082691,0.0002657,2]
[314930060,1708681832533,-283.40917309,0.0002657,2]
[314930061,1708681832543,-499.99,0.0002657,2]
[314930062,1708681832552,-435.46,0.00026583,2]
[314930063,1708681832565,-183.45258015,0.00026593,2]
[314930064,1708681832576,-1847.0545072,0.00026593,2]
[314930065,1708681832588,-2796.49080795,0.00026593,2]
[314930066,1708681832628,-642.5558463,0.00026593,2]
[314930068,1708681832672,-643.36390765,0.00026593,2]
[314930082,1708681832778,-4287.90235075,0.00026593,2]
[314930084,1708681832787,-472.0,0.00026697,2]
[314930086,1708681832796,-165.21114699,0.00026773,2]
[314930088,1708681832806,-163.0,0.00026871,2]
[314930090,1708681832819,-564.54,0.00026873,2]
[314930092,1708681832828,-404.83,0.00026907,2]
[314930095,1708681832837,-165.21114694,0.00027038,2]
[314930097,1708681832847,-177.74,0.00027199,2]
[314930098,1708681832858,-250.0,0.000272,2]
[314930101,1708681832868,-1842.68,0.00027242,2]
[314930103,1708681832879,-1845.7,0.00027257,2]
[314930105,1708681832889,-1782.36,0.0002726,2]
[314930106,1708681832899,-165.21114694,0.00027304,2]
[314930109,1708681832909,-770.12,0.00027397,2]
[314930111,1708681832919,-1390.911033,0.00027451,2]
[314930113,1708681832930,-770.12,0.00027556,2]
[314930115,1708681832940,-165.21114694,0.00027569,2]
[314930117,1708681832950,-1778.88,0.00027638,2]
[314930119,1708681832959,-163.0,0.00027693,2]
[314930121,1708681832969,-770.12,0.00027714,2]
[314930123,1708681832978,-351.92,0.00027747,2]
[314930125,1708681832987,-165.21114694,0.00027835,2]
[314930127,1708681832996,-1390.911033,0.00027849,2]
[314930129,1708681833006,-1811.95,0.00027871,2]
[314930131,1708681833016,-770.12,0.00027872,2]
[314930133,1708681833025,-1269.176992,0.00027884,2]
[314930135,1708681833034,-2000.0,0.000279,2]
[314930137,1708681833043,-2335.19734708,0.00027931,2]
[314930139,1708681833053,-22797.76550943,0.00027932,2]
[314930191,1708681840164,-48337.7006724,0.00027932,2]
[314930192,1708681840174,-15681.55909428,0.00027932,2]
[314930193,1708681840184,-939.50939808,0.00027965,2]
[314930194,1708681840193,-1840.17,0.00027984,2]
[314930195,1708681840203,-939.50939807,0.00027999,2]
[314930196,1708681840213,-749.43475578,0.00027999,2]
[314930197,1708681840222,-1500.0,0.00028,2]
[314930198,1708681840232,-174.32,0.00028022,2]